Workbook

Sheet User Input
C1: Western Cape Water Supply System - Dam Draw Down Estimator
B3: Water Usage
B4: CCT Savings | C4: 0.45 | D4: =AVERAGE(Calculations!O3:O54) -> 476.5712674 | E4: Ml/d
B5: Other Municipalities Savings | C5: 0.45 | D5: =AVERAGE(Calculations!P3:P54) -> 52.95236304 | E5: Ml/d
B6: Agricultural Savings | C6: 0.6 | D6: =AVERAGE(Calculations!Q3:Q54) -> 157.7767384 | E6: Ml/d
B7: Evaporation Losses | C7: Normal | D7: =AVERAGE(Calculations!R3:R54) -> 141.7947186 | E7: Ml/d
B10: User Defined Augmentation Projects
B11: Augmentation 1 | D11: Ml/d | E11: starting
B12: Augmentation 2 | D12: Ml/d | E12: starting
B13: Augmentation 3 | D13: Ml/d | E13: starting

Sheet Calculations
A1: Date: | C1: Week | D1: Actual Storage | G1: Baseline Unrestricted Demand (Ml/d) | K1: User Change - Savings | O1: User Change - Demand (Ml/d) | S1: User -Augmentation (Ml/d) | T1: Inflow (Ml/d) | U1: Storage (MCM) | V1: Storage (%) | X1: DSL (%) | Y1: Day Zero (%)
A2: =TODAY()-1 -> 2018-01-23 | D2: MCM | E2: % | G2: CCT | H2: Other M | I2: Agric | J2: Evap | K2: CCT | L2: Other M | M2: Agric | N2: Evap | O2: CCT | P2: Other M | Q2: Agric | R2: Evap
C3: 2017-11-05 | D3: 339.597 | E3: 0.37733 | G3: 891.6551877 | H3: 99.07279863 | I3: 287.2222222 | J3: 260.6784465 | K3: ='User Input'!$C$4 -> 0.45 | L3: ='User Input'!$C$5 -> 0.45 | M3: ='User Input'!$C$6 -> 0.6 | N3: =IF('User Input'!$C$7="Normal",1, IF('User Input'!$C$7="Low",0.8,1.2)) -> 1 | O3: =(1-K3)*G3 -> 490.4103532 | P3: =(1-L3)*H3 -> 54.49003925 | Q3: 114.8888889 | R3: =N3*J3 -> 260.6784465 | S3: =IF(C3>='User Input'!$F$11,'User Input'!$C$11,0)+IF(C3>='User Input'!$F$12,'User Input'!$C$12,0)+IF(C3>='User Input'!$F$13,'User Input'!$C$13,0) -> 0 | T3: 0 | X3: 0.1 | Y3: 0.135
C4: =C3+7 -> 2017-11-12 | D4: 330.867204 | E4: 0.3676302267 | G4: 891.6551877 | H4: 99.07279863 | I4: 287.2222222 | J4: 260.6784465 | K4: ='User Input'!$C$4 -> 0.45 | L4: ='User Input'!$C$5 -> 0.45 | M4: ='User Input'!$C$6 -> 0.6 | N4: =IF('User Input'!$C$7="Normal",1, IF('User Input'!$C$7="Low",0.8,1.2)) -> 1 | O4: =(1-K4)*G4 -> 490.4103532 | P4: 54.49003925 | Q4: 114.8888889 | R4: =N4*J4 -> 260.6784465 | S4: =IF(C4>='User Input'!$F$11,'User Input'!$C$11,0)+IF(C4>='User Input'!$F$12,'User Input'!$C$12,0)+IF(C4>='User Input'!$F$13,'User Input'!$C$13,0) -> 0 | T4: 0 | X4: 0.1 | Y4: 0.135
C5: =C4+7 -> 2017-11-19 | D5: 325.273 | E5: 0.3614144444 | G5: 891.6551877 | H5: 99.07279863 | I5: 287.2222222 | J5: 260.6784465 | K5: ='User Input'!$C$4 -> 0.45 | L5: ='User Input'!$C$5 -> 0.45 | M5: ='User Input'!$C$6 -> 0.6 | N5: =IF('User Input'!$C$7="Normal",1, IF('User Input'!$C$7="Low",0.8,1.2)) -> 1 | O5: 490.4103532 | P5: 54.49003925 | Q5: 114.8888889 | R5: 260.6784465 | S5: =IF(C5>='User Input'!$F$11,'User Input'!$C$11,0)+IF(C5>='User Input'!$F$12,'User Input'!$C$12,0)+IF(C5>='User Input'!$F$13,'User Input'!$C$13,0) -> 0 | T5: 0 | X5: 0.1 | Y5: 0.135
C6: 2017-11-26 | D6: 324.5634 | E6: 0.360626 | G6: 891.6551877 | H6: 99.07279863 | I6: 287.2222222 | J6: 260.6784465 | K6: ='User Input'!$C$4 -> 0.45 | L6: ='User Input'!$C$5 -> 0.45 | M6: ='User Input'!$C$6 -> 0.6 | N6: =IF('User Input'!$C$7="Normal",1, IF('User Input'!$C$7="Low",0.8,1.2)) -> 1 | O6: 490.4103532 | P6: 54.49003925 | Q6: 114.8888889 | R6: 260.6784465 | S6: =IF(C6>='User Input'!$F$11,'User Input'!$C$11,0)+IF(C6>='User Input'!$F$12,'User Input'!$C$12,0)+IF(C6>='User Input'!$F$13,'User Input'!$C$13,0) -> 0 | T6: 0 | X6: 0.1 | Y6: 0.135
C7: 2017-12-03 | D7: 315.480078 | E7: 0.35053342 | G7: 932.2816486 | H7: 103.5868498 | I7: 769.3548387 | J7: 285.7295626 | K7: ='User Input'!$C$4 -> 0.45 | L7: ='User Input'!$C$5 -> 0.45 | M7: ='User Input'!$C$6 -> 0.6 | N7: =IF('User Input'!$C$7="Normal",1, IF('User Input'!$C$7="Low",0.8,1.2)) -> 1 | O7: 512.7549067 | P7: 56.97276742 | Q7: 307.7419355 | R7: 285.7295626 | S7: =IF(C7>='User Input'!$F$11,'User Input'!$C$11,0)+IF(C7>='User Input'!$F$12,'User Input'!$C$12,0)+IF(C7>='User Input'!$F$13,'User Input'!$C$13,0) -> 0 | T7: 0 | X7: 0.1 | Y7: 0.135
C8: 2017-12-10 | D8: 306.83 | E8: 0.3409222222 | G8: 932.2816486 | H8: 103.5868498 | I8: 769.3548387 | J8: 285.7295626 | K8: ='User Input'!$C$4 -> 0.45 | L8: ='User Input'!$C$5 -> 0.45 | M8: ='User Input'!$C$6 -> 0.6 | N8: =IF('User Input'!$C$7="Normal",1, IF('User Input'!$C$7="Low",0.8,1.2)) -> 1 | O8: =(1-K8)*G8 -> 512.7549067 | P8: 56.97276742 | Q8: 307.7419355 | R8: 285.7295626 | S8: =IF(C8>='User Input'!$F$11,'User Input'!$C$11,0)+IF(C8>='User Input'!$F$12,'User Input'!$C$12,0)+IF(C8>='User Input'!$F$13,'User Input'!$C$13,0) -> 0 | T8: 0 | X8: 0.1 | Y8: 0.135
C9: 2017-12-17 | D9: 296.778432 | E9: 0.3297538133 | G9: 932.2816486 | H9: 103.5868498 | I9: 769.3548387 | J9: 285.7295626 | K9: ='User Input'!$C$4 -> 0.45 | L9: ='User Input'!$C$5 -> 0.45 | M9: ='User Input'!$C$6 -> 0.6 | N9: =IF('User Input'!$C$7="Normal",1, IF('User Input'!$C$7="Low",0.8,1.2)) -> 1 | O9: 512.7549067 | P9: 56.97276742 | Q9: 307.7419355 | R9: 285.7295626 | S9: =IF(C9>='User Input'!$F$11,'User Input'!$C$11,0)+IF(C9>='User Input'!$F$12,'User Input'!$C$12,0)+IF(C9>='User Input'!$F$13,'User Input'!$C$13,0) -> 0 | T9: 0 | X9: 0.1 | Y9: 0.135
C10: 2017-12-24 | D10: 287.351183 | E10: 0.3192790922 | G10: 932.2816486 | H10: 103.5868498 | I10: 769.3548387 | J10: 285.7295626 | K10: ='User Input'!$C$4 -> 0.45 | L10: ='User Input'!$C$5 -> 0.45 | M10: ='User Input'!$C$6 -> 0.6 | N10: =IF('User Input'!$C$7="Normal",1, IF('User Input'!$C$7="Low",0.8,1.2)) -> 1 | O10: =(1-K10)*G10 -> 512.7549067 | P10: 56.97276742 | Q10: 307.7419355 | R10: 285.7295626 | S10: =IF(C10>='User Input'!$F$11,'User Input'!$C$11,0)+IF(C10>='User Input'!$F$12,'User Input'!$C$12,0)+IF(C10>='User Input'!$F$13,'User Input'!$C$13,0) -> 0 | T10: 0 | X10: 0.1 | Y10: 0.135
C11: 2017-12-31 | D11: 278.883799 | E11: 0.3098708878 | G11: 932.2816486 | H11: 103.5868498 | I11: 769.3548387 | J11: 285.7295626 | K11: ='User Input'!$C$4 -> 0.45 | L11: ='User Input'!$C$5 -> 0.45 | M11: ='User Input'!$C$6 -> 0.6 | N11: =IF('User Input'!$C$7="Normal",1, IF('User Input'!$C$7="Low",0.8,1.2)) -> 1 | O11: 512.7549067 | P11: 56.97276742 | Q11: 307.7419355 | R11: 285.7295626 | S11: =IF(C11>='User Input'!$F$11,'User Input'!$C$11,0)+IF(C11>='User Input'!$F$12,'User Input'!$C$12,0)+IF(C11>='User Input'!$F$13,'User Input'!$C$13,0) -> 0 | T11: 0 | X11: 0.1 | Y11: 0.135
C12: 2018-01-07 | D12: 267.063 | E12: 0.2967366667 | G12: 932.2816486 | H12: 103.5868498 | I12: 1015.053763 | J12: 281.5496079 | K12: ='User Input'!$C$4 -> 0.45 | L12: ='User Input'!$C$5 -> 0.45 | M12: ='User Input'!$C$6 -> 0.6 | N12: =IF('User Input'!$C$7="Normal",1, IF('User Input'!$C$7="Low",0.8,1.2)) -> 1 | O12: 512.7549067 | P12: 56.97276742 | Q12: 406.0215054 | R12: 281.5496079 | S12: =IF(C12>='User Input'!$F$11,'User Input'!$C$11,0)+IF(C12>='User Input'!$F$12,'User Input'!$C$12,0)+IF(C12>='User Input'!$F$13,'User Input'!$C$13,0) -> 0 | T12: 0 | X12: 0.1 | Y12: 0.135
C13: 2018-01-14 | D13: 257.715015 | E13: 0.2863500167 | G13: 932.2816486 | H13: 103.5868498 | I13: 1015.053763 | J13: 281.5496079 | K13: ='User Input'!$C$4 -> 0.45 | L13: ='User Input'!$C$5 -> 0.45 | M13: ='User Input'!$C$6 -> 0.6 | N13: =IF('User Input'!$C$7="Normal",1, IF('User Input'!$C$7="Low",0.8,1.2)) -> 1 | O13: 512.7549067 | P13: 56.97276742 | Q13: 406.0215054 | R13: 281.5496079 | S13: =IF(C13>='User Input'!$F$11,'User Input'!$C$11,0)+IF(C13>='User Input'!$F$12,'User Input'!$C$12,0)+IF(C13>='User Input'!$F$13,'User Input'!$C$13,0) -> 0 | T13: 0 | X13: 0.1 | Y13: 0.135
C14: 2018-01-21 | D14: 244.788747 | E14: 0.2719874967 | G14: 932.2816486 | H14: 103.5868498 | I14: 1015.053763 | J14: 281.5496079 | K14: ='User Input'!$C$4 -> 0.45 | L14: ='User Input'!$C$5 -> 0.45 | M14: ='User Input'!$C$6 -> 0.6 | N14: =IF('User Input'!$C$7="Normal",1, IF('User Input'!$C$7="Low",0.8,1.2)) -> 1 | O14: 512.7549067 | P14: 56.97276742 | Q14: 406.0215054 | R14: 281.5496079 | S14: =IF(C14>='User Input'!$F$11,'User Input'!$C$11,0)+IF(C14>='User Input'!$F$12,'User Input'!$C$12,0)+IF(C14>='User Input'!$F$13,'User Input'!$C$13,0) -> 0 | T14: 0 | U14: =D14 -> 244.788747 | V14: =U14/900 -> 0.2719874967 | X14: 0.1 | Y14: 0.135
C15: 2018-01-28 | G15: 932.2816486 | H15: 103.5868498 | I15: 1015.053763 | J15: 281.5496079 | K15: ='User Input'!$C$4 -> 0.45 | L15: ='User Input'!$C$5 -> 0.45 | M15: ='User Input'!$C$6 -> 0.6 | N15: =IF('User Input'!$C$7="Normal",1, IF('User Input'!$C$7="Low",0.8,1.2)) -> 1 | O15: 512.7549067 | P15: 56.97276742 | Q15: 406.0215054 | R15: 281.5496079 | S15: =IF(C15>='User Input'!$F$11,'User Input'!$C$11,0)+IF(C15>='User Input'!$F$12,'User Input'!$C$12,0)+IF(C15>='User Input'!$F$13,'User Input'!$C$13,0) -> 0 | T15: 0 | U15: =U14+(S15+T15)*7/1000-(O15+P15+Q15+R15)*7/1000 -> 235.9876555 | V15: 0.2622085061 | X15: 0.1 | Y15: 0.135
C16: 2018-02-04 | G16: 985.7028067 | H16: 109.5225341 | I16: 1063.359788 | J16: 241.1541666 | K16: ='User Input'!$C$4 -> 0.45 | L16: ='User Input'!$C$5 -> 0.45 | M16: ='User Input'!$C$6 -> 0.6 | N16: =IF('User Input'!$C$7="Normal",1, IF('User Input'!$C$7="Low",0.8,1.2)) -> 1 | O16: 542.1365437 | P16: 60.23739374 | Q16: 425.3439153 | R16: 241.1541666 | S16: =IF(C16>='User Input'!$F$11,'User Input'!$C$11,0)+IF(C16>='User Input'!$F$12,'User Input'!$C$12,0)+IF(C16>='User Input'!$F$13,'User Input'!$C$13,0) -> 0 | T16: 0 | U16: =U15+(S16+T16)*7/1000-(O16+P16+Q16+R16)*7/1000 -> 227.1055514 | V16: 0.2523395015 | X16: 0.1 | Y16: 0.135
C17: 2018-02-11 | G17: 985.7028067 | H17: 109.5225341 | I17: 1063.359788 | J17: 241.1541666 | K17: ='User Input'!$C$4 -> 0.45 | L17: ='User Input'!$C$5 -> 0.45 | M17: ='User Input'!$C$6 -> 0.6 | N17: =IF('User Input'!$C$7="Normal",1, IF('User Input'!$C$7="Low",0.8,1.2)) -> 1 | O17: 542.1365437 | P17: 60.23739374 | Q17: 425.3439153 | R17: 241.1541666 | S17: =IF(C17>='User Input'!$F$11,'User Input'!$C$11,0)+IF(C17>='User Input'!$F$12,'User Input'!$C$12,0)+IF(C17>='User Input'!$F$13,'User Input'!$C$13,0) -> 0 | T17: 0 | U17: 218.2234472 | V17: 0.2424704969 | X17: 0.1 | Y17: 0.135
C18: 2018-02-18 | G18: 985.7028067 | H18: 109.5225341 | I18: 1063.359788 | J18: 241.1541666 | K18: ='User Input'!$C$4 -> 0.45 | L18: ='User Input'!$C$5 -> 0.45 | M18: ='User Input'!$C$6 -> 0.6 | N18: =IF('User Input'!$C$7="Normal",1, IF('User Input'!$C$7="Low",0.8,1.2)) -> 1 | O18: 542.1365437 | P18: 60.23739374 | Q18: 425.3439153 | R18: 241.1541666 | S18: =IF(C18>='User Input'!$F$11,'User Input'!$C$11,0)+IF(C18>='User Input'!$F$12,'User Input'!$C$12,0)+IF(C18>='User Input'!$F$13,'User Input'!$C$13,0) -> 0 | T18: 0 | U18: 209.3413431 | V18: 0.2326014923 | X18: 0.1 | Y18: 0.135
C19: 2018-02-25 | G19: 985.7028067 | H19: 109.5225341 | I19: 1063.359788 | J19: 241.1541666 | K19: ='User Input'!$C$4 -> 0.45 | L19: ='User Input'!$C$5 -> 0.45 | M19: ='User Input'!$C$6 -> 0.6 | N19: =IF('User Input'!$C$7="Normal",1, IF('User Input'!$C$7="Low",0.8,1.2)) -> 1 | O19: 542.1365437 | P19: 60.23739374 | Q19: 425.3439153 | R19: 241.1541666 | S19: =IF(C19>='User Input'!$F$11,'User Input'!$C$11,0)+IF(C19>='User Input'!$F$12,'User Input'!$C$12,0)+IF(C19>='User Input'!$F$13,'User Input'!$C$13,0) -> 0 | T19: 0 | U19: 200.4592389 | V19: 0.2227324877 | X19: 0.1 | Y19: 0.135
C20: 2018-03-04 | G20: 904.5817889 | H20: 100.5090877 | I20: 878.5543608 | J20: 168.6732178 | K20: ='User Input'!$C$4 -> 0.45 | L20: ='User Input'!$C$5 -> 0.45 | M20: ='User Input'!$C$6 -> 0.6 | N20: =IF('User Input'!$C$7="Normal",1, IF('User Input'!$C$7="Low",0.8,1.2)) -> 1 | O20: 497.5199839 | P20: 55.27999821 | Q20: 351.4217443 | R20: 168.6732178 | S20: =IF(C20>='User Input'!$F$11,'User Input'!$C$11,0)+IF(C20>='User Input'!$F$12,'User Input'!$C$12,0)+IF(C20>='User Input'!$F$13,'User Input'!$C$13,0) -> 0 | T20: 0 | U20: 192.9489743 | V20: 0.2143877493 | X20: 0.1 | Y20: 0.135
C21: 2018-03-11 | G21: 904.5817889 | H21: 100.5090877 | I21: 878.5543608 | J21: 168.6732178 | K21: ='User Input'!$C$4 -> 0.45 | L21: ='User Input'!$C$5 -> 0.45 | M21: ='User Input'!$C$6 -> 0.6 | N21: =IF('User Input'!$C$7="Normal",1, IF('User Input'!$C$7="Low",0.8,1.2)) -> 1 | O21: 497.5199839 | P21: 55.27999821 | Q21: 351.4217443 | R21: 168.6732178 | S21: =IF(C21>='User Input'!$F$11,'User Input'!$C$11,0)+IF(C21>='User Input'!$F$12,'User Input'!$C$12,0)+IF(C21>='User Input'!$F$13,'User Input'!$C$13,0) -> 0 | T21: 0 | U21: 185.4387097 | V21: 0.2060430108 | X21: 0.1 | Y21: 0.135
C22: 2018-03-18 | G22: 904.5817889 | H22: 100.5090877 | I22: 878.5543608 | J22: 168.6732178 | K22: ='User Input'!$C$4 -> 0.45 | L22: ='User Input'!$C$5 -> 0.45 | M22: ='User Input'!$C$6 -> 0.6 | N22: =IF('User Input'!$C$7="Normal",1, IF('User Input'!$C$7="Low",0.8,1.2)) -> 1 | O22: 497.5199839 | P22: 55.27999821 | Q22: 351.4217443 | R22: 168.6732178 | S22: =IF(C22>='User Input'!$F$11,'User Input'!$C$11,0)+IF(C22>='User Input'!$F$12,'User Input'!$C$12,0)+IF(C22>='User Input'!$F$13,'User Input'!$C$13,0) -> 0 | T22: 0 | U22: 177.9284451 | V22: 0.1976982724 | X22: 0.1 | Y22: 0.135
C23: 2018-03-25 | G23: 904.5817889 | H23: 100.5090877 | I23: 878.5543608 | J23: 168.6732178 | K23: ='User Input'!$C$4 -> 0.45 | L23: ='User Input'!$C$5 -> 0.45 | M23: ='User Input'!$C$6 -> 0.6 | N23: =IF('User Input'!$C$7="Normal",1, IF('User Input'!$C$7="Low",0.8,1.2)) -> 1 | O23: 497.5199839 | P23: 55.27999821 | Q23: 351.4217443 | R23: 168.6732178 | S23: =IF(C23>='User Input'!$F$11,'User Input'!$C$11,0)+IF(C23>='User Input'!$F$12,'User Input'!$C$12,0)+IF(C23>='User Input'!$F$13,'User Input'!$C$13,0) -> 0 | T23: 4.761904762 | U23: =U22+(S23+T23)*7/1000-(O23+P23+Q23+R23)*7/1000 -> 170.4515138 | V23: 0.1893905709 | X23: 0.1 | Y23: 0.135
C24: 2018-04-01 | G24: 877.3435935 | H24: 97.4826215 | I24: 484.691358 | J24: 99.8287289 | K24: ='User Input'!$C$4 -> 0.45 | L24: ='User Input'!$C$5 -> 0.45 | M24: ='User Input'!$C$6 -> 0.6 | N24: =IF('User Input'!$C$7="Normal",1, IF('User Input'!$C$7="Low",0.8,1.2)) -> 1 | O24: 482.5389764 | P24: 53.61544182 | Q24: 193.8765432 | R24: 99.8287289 | S24: =IF(C24>='User Input'!$F$11,'User Input'!$C$11,0)+IF(C24>='User Input'!$F$12,'User Input'!$C$12,0)+IF(C24>='User Input'!$F$13,'User Input'!$C$13,0) -> 0 | T24: 33.33333333 | U24: 164.8758293 | V24: 0.1831953659 | X24: 0.1 | Y24: 0.135
C25: 2018-04-08 | G25: 877.3435935 | H25: 97.4826215 | I25: 484.691358 | J25: 99.8287289 | K25: ='User Input'!$C$4 -> 0.45 | L25: ='User Input'!$C$5 -> 0.45 | M25: ='User Input'!$C$6 -> 0.6 | N25: =IF('User Input'!$C$7="Normal",1, IF('User Input'!$C$7="Low",0.8,1.2)) -> 1 | O25: 482.5389764 | P25: 53.61544182 | Q25: 193.8765432 | R25: 99.8287289 | S25: =IF(C25>='User Input'!$F$11,'User Input'!$C$11,0)+IF(C25>='User Input'!$F$12,'User Input'!$C$12,0)+IF(C25>='User Input'!$F$13,'User Input'!$C$13,0) -> 0 | T25: 33.33333333 | U25: 159.3001448 | V25: =U25/900 -> 0.1770001609 | X25: 0.1 | Y25: 0.135
C26: 2018-04-15 | G26: 877.3435935 | H26: 97.4826215 | I26: 484.691358 | J26: 99.8287289 | K26: ='User Input'!$C$4 -> 0.45 | L26: ='User Input'!$C$5 -> 0.45 | M26: ='User Input'!$C$6 -> 0.6 | N26: =IF('User Input'!$C$7="Normal",1, IF('User Input'!$C$7="Low",0.8,1.2)) -> 1 | O26: 482.5389764 | P26: 53.61544182 | Q26: 193.8765432 | R26: 99.8287289 | S26: =IF(C26>='User Input'!$F$11,'User Input'!$C$11,0)+IF(C26>='User Input'!$F$12,'User Input'!$C$12,0)+IF(C26>='User Input'!$F$13,'User Input'!$C$13,0) -> 0 | T26: 33.33333333 | U26: 153.7244603 | V26: =U26/900 -> 0.1708049559 | X26: 0.1 | Y26: 0.135
C27: 2018-04-22 | G27: 877.3435935 | H27: 97.4826215 | I27: 484.691358 | J27: 99.8287289 | K27: ='User Input'!$C$4 -> 0.45 | L27: ='User Input'!$C$5 -> 0.45 | M27: ='User Input'!$C$6 -> 0.6 | N27: =IF('User Input'!$C$7="Normal",1, IF('User Input'!$C$7="Low",0.8,1.2)) -> 1 | O27: 482.5389764 | P27: 53.61544182 | Q27: 193.8765432 | R27: 99.8287289 | S27: =IF(C27>='User Input'!$F$11,'User Input'!$C$11,0)+IF(C27>='User Input'!$F$12,'User Input'!$C$12,0)+IF(C27>='User Input'!$F$13,'User Input'!$C$13,0) -> 0 | T27: 33.33333333 | U27: 148.1487758 | V27: 0.1646097509 | X27: 0.1 | Y27: 0.135
C28: 2018-04-29 | G28: 877.3435935 | H28: 97.4826215 | I28: 484.691358 | J28: 99.8287289 | K28: ='User Input'!$C$4 -> 0.45 | L28: ='User Input'!$C$5 -> 0.45 | M28: ='User Input'!$C$6 -> 0.6 | N28: =IF('User Input'!$C$7="Normal",1, IF('User Input'!$C$7="Low",0.8,1.2)) -> 1 | O28: 482.5389764 | P28: 53.61544182 | Q28: 193.8765432 | R28: 99.8287289 | S28: =IF(C28>='User Input'!$F$11,'User Input'!$C$11,0)+IF(C28>='User Input'!$F$12,'User Input'!$C$12,0)+IF(C28>='User Input'!$F$13,'User Input'!$C$13,0) -> 0 | T28: 198.3102919 | U28: 143.7279301 | V28: 0.1596977001 | X28: 0.1 | Y28: 0.135
C29: 2018-05-06 | G29: 821.4822096 | H29: 91.27580107 | I29: 54.59976105 | J29: 48.83750774 | K29: ='User Input'!$C$4 -> 0.45 | L29: ='User Input'!$C$5 -> 0.45 | M29: ='User Input'!$C$6 -> 0.6 | N29: =IF('User Input'!$C$7="Normal",1, IF('User Input'!$C$7="Low",0.8,1.2)) -> 1 | O29: 451.8152153 | P29: 50.20169059 | Q29: 21.83990442 | R29: 48.83750774 | S29: =IF(C29>='User Input'!$F$11,'User Input'!$C$11,0)+IF(C29>='User Input'!$F$12,'User Input'!$C$12,0)+IF(C29>='User Input'!$F$13,'User Input'!$C$13,0) -> 0 | T29: 225.8064516 | U29: 141.299715 | V29: 0.1569996833 | X29: 0.1 | Y29: 0.135
C30: 2018-05-13 | G30: 821.4822096 | H30: 91.27580107 | I30: 54.59976105 | J30: 48.83750774 | K30: ='User Input'!$C$4 -> 0.45 | L30: ='User Input'!$C$5 -> 0.45 | M30: ='User Input'!$C$6 -> 0.6 | N30: =IF('User Input'!$C$7="Normal",1, IF('User Input'!$C$7="Low",0.8,1.2)) -> 1 | O30: 451.8152153 | P30: 50.20169059 | Q30: 21.83990442 | R30: 48.83750774 | S30: =IF(C30>='User Input'!$F$11,'User Input'!$C$11,0)+IF(C30>='User Input'!$F$12,'User Input'!$C$12,0)+IF(C30>='User Input'!$F$13,'User Input'!$C$13,0) -> 0 | T30: 225.8064516 | U30: 138.8714999 | V30: 0.1543016666 | X30: 0.1 | Y30: 0.135
C31: 2018-05-20 | G31: 821.4822096 | H31: 91.27580107 | I31: 54.59976105 | J31: 48.83750774 | K31: ='User Input'!$C$4 -> 0.45 | L31: ='User Input'!$C$5 -> 0.45 | M31: ='User Input'!$C$6 -> 0.6 | N31: =IF('User Input'!$C$7="Normal",1, IF('User Input'!$C$7="Low",0.8,1.2)) -> 1 | O31: 451.8152153 | P31: 50.20169059 | Q31: 21.83990442 | R31: 48.83750774 | S31: =IF(C31>='User Input'!$F$11,'User Input'!$C$11,0)+IF(C31>='User Input'!$F$12,'User Input'!$C$12,0)+IF(C31>='User Input'!$F$13,'User Input'!$C$13,0) -> 0 | T31: 225.8064516 | U31: 136.4432849 | V31: 0.1516036498 | X31: 0.1 | Y31: 0.135
C32: 2018-05-27 | G32: 821.4822096 | H32: 91.27580107 | I32: 54.59976105 | J32: 48.83750774 | K32: ='User Input'!$C$4 -> 0.45 | L32: ='User Input'!$C$5 -> 0.45 | M32: ='User Input'!$C$6 -> 0.6 | N32: =IF('User Input'!$C$7="Normal",1, IF('User Input'!$C$7="Low",0.8,1.2)) -> 1 | O32: 451.8152153 | P32: 50.20169059 | Q32: 21.83990442 | R32: 48.83750774 | S32: =IF(C32>='User Input'!$F$11,'User Input'!$C$11,0)+IF(C32>='User Input'!$F$12,'User Input'!$C$12,0)+IF(C32>='User Input'!$F$13,'User Input'!$C$13,0) -> 0 | T32: 271.8894009 | U32: 134.3376504 | V32: 0.149264056 | X32: 0.1 | Y32: 0.135
C33: 2018-06-03 | G33: 805.7856225 | H33: 89.53173583 | I33: 28.20987654 | J33: 33.6122572 | K33: ='User Input'!$C$4 -> 0.45 | L33: ='User Input'!$C$5 -> 0.45 | M33: ='User Input'!$C$6 -> 0.6 | N33: =IF('User Input'!$C$7="Normal",1, IF('User Input'!$C$7="Low",0.8,1.2)) -> 1 | O33: 443.1820923 | P33: 49.24245471 | Q33: 11.28395062 | R33: 33.6122572 | S33: =IF(C33>='User Input'!$F$11,'User Input'!$C$11,0)+IF(C33>='User Input'!$F$12,'User Input'!$C$12,0)+IF(C33>='User Input'!$F$13,'User Input'!$C$13,0) -> 0 | T33: 333.3333333 | U33: 132.9097385 | V33: 0.1476774872 | X33: 0.1 | Y33: 0.135
C34: 2018-06-10 | G34: 805.7856225 | H34: 89.53173583 | I34: 28.20987654 | J34: 33.6122572 | K34: ='User Input'!$C$4 -> 0.45 | L34: ='User Input'!$C$5 -> 0.45 | M34: ='User Input'!$C$6 -> 0.6 | N34: =IF('User Input'!$C$7="Normal",1, IF('User Input'!$C$7="Low",0.8,1.2)) -> 1 | O34: 443.1820923 | P34: 49.24245471 | Q34: 11.28395062 | R34: 33.6122572 | S34: =IF(C34>='User Input'!$F$11,'User Input'!$C$11,0)+IF(C34>='User Input'!$F$12,'User Input'!$C$12,0)+IF(C34>='User Input'!$F$13,'User Input'!$C$13,0) -> 0 | T34: 333.3333333 | U34: 131.4818265 | V34: 0.1460909184 | X34: 0.1 | Y34: 0.135
C35: 2018-06-17 | G35: 805.7856225 | H35: 89.53173583 | I35: 28.20987654 | J35: 33.6122572 | K35: ='User Input'!$C$4 -> 0.45 | L35: ='User Input'!$C$5 -> 0.45 | M35: ='User Input'!$C$6 -> 0.6 | N35: =IF('User Input'!$C$7="Normal",1, IF('User Input'!$C$7="Low",0.8,1.2)) -> 1 | O35: 443.1820923 | P35: 49.24245471 | Q35: 11.28395062 | R35: 33.6122572 | S35: =IF(C35>='User Input'!$F$11,'User Input'!$C$11,0)+IF(C35>='User Input'!$F$12,'User Input'!$C$12,0)+IF(C35>='User Input'!$F$13,'User Input'!$C$13,0) -> 0 | T35: 333.3333333 | U35: 130.0539146 | V35: 0.1445043495 | X35: 0.1 | Y35: 0.135
C36: 2018-06-24 | G36: 805.7856225 | H36: 89.53173583 | I36: 28.20987654 | J36: 33.6122572 | K36: ='User Input'!$C$4 -> 0.45 | L36: ='User Input'!$C$5 -> 0.45 | M36: ='User Input'!$C$6 -> 0.6 | N36: =IF('User Input'!$C$7="Normal",1, IF('User Input'!$C$7="Low",0.8,1.2)) -> 1 | O36: 443.1820923 | P36: 49.24245471 | Q36: 11.28395062 | R36: 33.6122572 | S36: =IF(C36>='User Input'!$F$11,'User Input'!$C$11,0)+IF(C36>='User Input'!$F$12,'User Input'!$C$12,0)+IF(C36>='User Input'!$F$13,'User Input'!$C$13,0) -> 0 | T36: 442.3963134 | U36: 129.3894435 | V36: 0.1437660483 | X36: 0.1 | Y36: 0.135
C37: 2018-07-01 | G37: 779.93242 | H37: 86.65915778 | I37: 27.29988053 | J37: 28.44971783 | K37: ='User Input'!$C$4 -> 0.45 | L37: ='User Input'!$C$5 -> 0.45 | M37: ='User Input'!$C$6 -> 0.6 | N37: =IF('User Input'!$C$7="Normal",1, IF('User Input'!$C$7="Low",0.8,1.2)) -> 1 | O37: 428.962831 | P37: 47.66253678 | Q37: 10.91995221 | R37: 28.44971783 | S37: =IF(C37>='User Input'!$F$11,'User Input'!$C$11,0)+IF(C37>='User Input'!$F$12,'User Input'!$C$12,0)+IF(C37>='User Input'!$F$13,'User Input'!$C$13,0) -> 0 | T37: 1096.774194 | U37: 133.4548976 | V37: 0.1482832195 | X37: 0.1 | Y37: 0.135
C38: 2018-07-08 | G38: 779.93242 | H38: 86.65915778 | I38: 27.29988053 | J38: 28.44971783 | K38: ='User Input'!$C$4 -> 0.45 | L38: ='User Input'!$C$5 -> 0.45 | M38: ='User Input'!$C$6 -> 0.6 | N38: =IF('User Input'!$C$7="Normal",1, IF('User Input'!$C$7="Low",0.8,1.2)) -> 1 | O38: 428.962831 | P38: 47.66253678 | Q38: 10.91995221 | R38: 28.44971783 | S38: =IF(C38>='User Input'!$F$11,'User Input'!$C$11,0)+IF(C38>='User Input'!$F$12,'User Input'!$C$12,0)+IF(C38>='User Input'!$F$13,'User Input'!$C$13,0) -> 0 | T38: 1096.774194 | U38: 137.5203517 | V38: 0.1528003908 | X38: 0.1 | Y38: 0.135
C39: 2018-07-15 | G39: 779.93242 | H39: 86.65915778 | I39: 27.29988053 | J39: 28.44971783 | K39: ='User Input'!$C$4 -> 0.45 | L39: ='User Input'!$C$5 -> 0.45 | M39: ='User Input'!$C$6 -> 0.6 | N39: =IF('User Input'!$C$7="Normal",1, IF('User Input'!$C$7="Low",0.8,1.2)) -> 1 | O39: 428.962831 | P39: 47.66253678 | Q39: 10.91995221 | R39: 28.44971783 | S39: =IF(C39>='User Input'!$F$11,'User Input'!$C$11,0)+IF(C39>='User Input'!$F$12,'User Input'!$C$12,0)+IF(C39>='User Input'!$F$13,'User Input'!$C$13,0) -> 0 | T39: 1096.774194 | U39: 141.5858058 | V39: 0.157317562 | X39: 0.1 | Y39: 0.135
C40: 2018-07-22 | G40: 779.93242 | H40: 86.65915778 | I40: 27.29988053 | J40: 28.44971783 | K40: ='User Input'!$C$4 -> 0.45 | L40: ='User Input'!$C$5 -> 0.45 | M40: ='User Input'!$C$6 -> 0.6 | N40: =IF('User Input'!$C$7="Normal",1, IF('User Input'!$C$7="Low",0.8,1.2)) -> 1 | O40: 428.962831 | P40: 47.66253678 | Q40: 10.91995221 | R40: 28.44971783 | S40: =IF(C40>='User Input'!$F$11,'User Input'!$C$11,0)+IF(C40>='User Input'!$F$12,'User Input'!$C$12,0)+IF(C40>='User Input'!$F$13,'User Input'!$C$13,0) -> 0 | T40: 1096.774194 | U40: 145.6512599 | V40: 0.1618347332 | X40: 0.1 | Y40: 0.135
C41: 2018-07-29 | G41: 779.93242 | H41: 86.65915778 | I41: 27.29988053 | J41: 28.44971783 | K41: ='User Input'!$C$4 -> 0.45 | L41: ='User Input'!$C$5 -> 0.45 | M41: ='User Input'!$C$6 -> 0.6 | N41: =IF('User Input'!$C$7="Normal",1, IF('User Input'!$C$7="Low",0.8,1.2)) -> 1 | O41: 428.962831 | P41: 47.66253678 | Q41: 10.91995221 | R41: 28.44971783 | S41: =IF(C41>='User Input'!$F$11,'User Input'!$C$11,0)+IF(C41>='User Input'!$F$12,'User Input'!$C$12,0)+IF(C41>='User Input'!$F$13,'User Input'!$C$13,0) -> 0 | T41: 1880.184332 | U41: 155.2005849 | V41: 0.1724450944 | X41: 0.1 | Y41: 0.135
C42: 2018-08-05 | G42: 793.7823499 | H42: 88.19803888 | I42: 27.29988053 | J42: 45.15543007 | K42: ='User Input'!$C$4 -> 0.45 | L42: ='User Input'!$C$5 -> 0.45 | M42: ='User Input'!$C$6 -> 0.6 | N42: =IF('User Input'!$C$7="Normal",1, IF('User Input'!$C$7="Low",0.8,1.2)) -> 1 | O42: 436.5802924 | P42: 48.50892138 | Q42: 10.91995221 | R42: 45.15543007 | S42: =IF(C42>='User Input'!$F$11,'User Input'!$C$11,0)+IF(C42>='User Input'!$F$12,'User Input'!$C$12,0)+IF(C42>='User Input'!$F$13,'User Input'!$C$13,0) -> 0 | T42: 2193.548387 | U42: 166.7672715 | V42: 0.1852969683 | X42: 0.1 | Y42: 0.135
C43: 2018-08-12 | G43: 793.7823499 | H43: 88.19803888 | I43: 27.29988053 | J43: 45.15543007 | K43: ='User Input'!$C$4 -> 0.45 | L43: ='User Input'!$C$5 -> 0.45 | M43: ='User Input'!$C$6 -> 0.6 | N43: =IF('User Input'!$C$7="Normal",1, IF('User Input'!$C$7="Low",0.8,1.2)) -> 1 | O43: 436.5802924 | P43: 48.50892138 | Q43: 10.91995221 | R43: 45.15543007 | S43: =IF(C43>='User Input'!$F$11,'User Input'!$C$11,0)+IF(C43>='User Input'!$F$12,'User Input'!$C$12,0)+IF(C43>='User Input'!$F$13,'User Input'!$C$13,0) -> 0 | T43: 2193.548387 | U43: 178.333958 | V43: 0.1981488422 | X43: 0.1 | Y43: 0.135
C44: 2018-08-19 | G44: 793.7823499 | H44: 88.19803888 | I44: 27.29988053 | J44: 45.15543007 | K44: ='User Input'!$C$4 -> 0.45 | L44: ='User Input'!$C$5 -> 0.45 | M44: ='User Input'!$C$6 -> 0.6 | N44: =IF('User Input'!$C$7="Normal",1, IF('User Input'!$C$7="Low",0.8,1.2)) -> 1 | O44: 436.5802924 | P44: 48.50892138 | Q44: 10.91995221 | R44: 45.15543007 | S44: =IF(C44>='User Input'!$F$11,'User Input'!$C$11,0)+IF(C44>='User Input'!$F$12,'User Input'!$C$12,0)+IF(C44>='User Input'!$F$13,'User Input'!$C$13,0) -> 0 | T44: 2193.548387 | U44: 189.9006445 | V44: 0.2110007161 | X44: 0.1 | Y44: 0.135
C45: 2018-08-26 | G45: 793.7823499 | H45: 88.19803888 | I45: 27.29988053 | J45: 45.15543007 | K45: ='User Input'!$C$4 -> 0.45 | L45: ='User Input'!$C$5 -> 0.45 | M45: ='User Input'!$C$6 -> 0.6 | N45: =IF('User Input'!$C$7="Normal",1, IF('User Input'!$C$7="Low",0.8,1.2)) -> 1 | O45: 436.5802924 | P45: 48.50892138 | Q45: 10.91995221 | R45: 45.15543007 | S45: =IF(C45>='User Input'!$F$11,'User Input'!$C$11,0)+IF(C45>='User Input'!$F$12,'User Input'!$C$12,0)+IF(C45>='User Input'!$F$13,'User Input'!$C$13,0) -> 0 | T45: 2385.867896 | U45: 202.8135676 | V45: 0.2253484085 | X45: 0.1 | Y45: 0.135
C46: 2018-09-02 | G46: 834.4088109 | H46: 92.7120901 | I46: 28.20987654 | J46: 80.39819067 | K46: ='User Input'!$C$4 -> 0.45 | L46: ='User Input'!$C$5 -> 0.45 | M46: ='User Input'!$C$6 -> 0.6 | N46: =IF('User Input'!$C$7="Normal",1, IF('User Input'!$C$7="Low",0.8,1.2)) -> 1 | O46: 458.924846 | P46: 50.99164955 | Q46: 11.28395062 | R46: 80.39819067 | S46: =IF(C46>='User Input'!$F$11,'User Input'!$C$11,0)+IF(C46>='User Input'!$F$12,'User Input'!$C$12,0)+IF(C46>='User Input'!$F$13,'User Input'!$C$13,0) -> 0 | T46: 2866.666667 | U46: 218.6690438 | V46: 0.2429656043 | X46: 0.1 | Y46: 0.135
C47: 2018-09-09 | G47: 834.4088109 | H47: 92.7120901 | I47: 28.20987654 | J47: 80.39819067 | K47: ='User Input'!$C$4 -> 0.45 | L47: ='User Input'!$C$5 -> 0.45 | M47: ='User Input'!$C$6 -> 0.6 | N47: =IF('User Input'!$C$7="Normal",1, IF('User Input'!$C$7="Low",0.8,1.2)) -> 1 | O47: 458.924846 | P47: 50.99164955 | Q47: 11.28395062 | R47: 80.39819067 | S47: =IF(C47>='User Input'!$F$11,'User Input'!$C$11,0)+IF(C47>='User Input'!$F$12,'User Input'!$C$12,0)+IF(C47>='User Input'!$F$13,'User Input'!$C$13,0) -> 0 | T47: 2866.666667 | U47: 234.52452 | V47: 0.2605828 | X47: 0.1 | Y47: 0.135
C48: 2018-09-16 | G48: 834.4088109 | H48: 92.7120901 | I48: 28.20987654 | J48: 80.39819067 | K48: ='User Input'!$C$4 -> 0.45 | L48: ='User Input'!$C$5 -> 0.45 | M48: ='User Input'!$C$6 -> 0.6 | N48: =IF('User Input'!$C$7="Normal",1, IF('User Input'!$C$7="Low",0.8,1.2)) -> 1 | O48: 458.924846 | P48: 50.99164955 | Q48: 11.28395062 | R48: 80.39819067 | S48: =IF(C48>='User Input'!$F$11,'User Input'!$C$11,0)+IF(C48>='User Input'!$F$12,'User Input'!$C$12,0)+IF(C48>='User Input'!$F$13,'User Input'!$C$13,0) -> 0 | T48: 2866.666667 | U48: 250.3799962 | V48: 0.2781999958 | X48: 0.1 | Y48: 0.135
C49: 2018-09-23 | G49: 834.4088109 | H49: 92.7120901 | I49: 28.20987654 | J49: 80.39819067 | K49: ='User Input'!$C$4 -> 0.45 | L49: ='User Input'!$C$5 -> 0.45 | M49: ='User Input'!$C$6 -> 0.6 | N49: =IF('User Input'!$C$7="Normal",1, IF('User Input'!$C$7="Low",0.8,1.2)) -> 1 | O49: 458.924846 | P49: 50.99164955 | Q49: 11.28395062 | R49: 80.39819067 | S49: =IF(C49>='User Input'!$F$11,'User Input'!$C$11,0)+IF(C49>='User Input'!$F$12,'User Input'!$C$12,0)+IF(C49>='User Input'!$F$13,'User Input'!$C$13,0) -> 0 | T49: 2866.666667 | U49: 266.2354725 | V49: 0.2958171916 | X49: 0.1 | Y49: 0.135
C50: 2018-09-30 | G50: 834.4088109 | H50: 92.7120901 | I50: 28.20987654 | J50: 80.39819067 | K50: ='User Input'!$C$4 -> 0.45 | L50: ='User Input'!$C$5 -> 0.45 | M50: ='User Input'!$C$6 -> 0.6 | N50: =IF('User Input'!$C$7="Normal",1, IF('User Input'!$C$7="Low",0.8,1.2)) -> 1 | O50: 458.924846 | P50: 50.99164955 | Q50: 11.28395062 | R50: 80.39819067 | S50: =IF(C50>='User Input'!$F$11,'User Input'!$C$11,0)+IF(C50>='User Input'!$F$12,'User Input'!$C$12,0)+IF(C50>='User Input'!$F$13,'User Input'!$C$13,0) -> 0 | T50: 1838.709677 | U50: 274.8952497 | V50: 0.3054391664 | X50: 0.1 | Y50: 0.135
C51: 2018-10-07 | G51: 849.1820694 | H51: 94.35356327 | I51: 136.4994026 | J51: 145.6629575 | K51: ='User Input'!$C$4 -> 0.45 | L51: ='User Input'!$C$5 -> 0.45 | M51: ='User Input'!$C$6 -> 0.6 | N51: =IF('User Input'!$C$7="Normal",1, IF('User Input'!$C$7="Low",0.8,1.2)) -> 1 | O51: 467.0501382 | P51: 51.8944598 | Q51: 54.59976105 | R51: 145.6629575 | S51: =IF(C51>='User Input'!$F$11,'User Input'!$C$11,0)+IF(C51>='User Input'!$F$12,'User Input'!$C$12,0)+IF(C51>='User Input'!$F$13,'User Input'!$C$13,0) -> 0 | T51: 1838.709677 | U51: 282.7317663 | V51: 0.314146407 | X51: 0.1 | Y51: 0.135
C52: 2018-10-14 | G52: 849.1820694 | H52: 94.35356327 | I52: 136.4994026 | J52: 145.6629575 | K52: ='User Input'!$C$4 -> 0.45 | L52: ='User Input'!$C$5 -> 0.45 | M52: ='User Input'!$C$6 -> 0.6 | N52: =IF('User Input'!$C$7="Normal",1, IF('User Input'!$C$7="Low",0.8,1.2)) -> 1 | O52: 467.0501382 | P52: 51.8944598 | Q52: 54.59976105 | R52: 145.6629575 | S52: =IF(C52>='User Input'!$F$11,'User Input'!$C$11,0)+IF(C52>='User Input'!$F$12,'User Input'!$C$12,0)+IF(C52>='User Input'!$F$13,'User Input'!$C$13,0) -> 0 | T52: 1838.709677 | U52: 290.5682828 | V52: 0.3228536475 | X52: 0.1 | Y52: 0.135
C53: 2018-10-21 | G53: 849.1820694 | H53: 94.35356327 | I53: 136.4994026 | J53: 145.6629575 | K53: ='User Input'!$C$4 -> 0.45 | L53: ='User Input'!$C$5 -> 0.45 | M53: ='User Input'!$C$6 -> 0.6 | N53: =IF('User Input'!$C$7="Normal",1, IF('User Input'!$C$7="Low",0.8,1.2)) -> 1 | O53: 467.0501382 | P53: 51.8944598 | Q53: 54.59976105 | R53: 145.6629575 | S53: =IF(C53>='User Input'!$F$11,'User Input'!$C$11,0)+IF(C53>='User Input'!$F$12,'User Input'!$C$12,0)+IF(C53>='User Input'!$F$13,'User Input'!$C$13,0) -> 0 | T53: 1838.709677 | U53: 298.4047993 | V53: 0.3315608881 | X53: 0.1 | Y53: 0.135
C54: 2018-10-28 | G54: 849.1820694 | H54: 94.35356327 | I54: 136.4994026 | J54: 145.6629575 | K54: ='User Input'!$C$4 -> 0.45 | L54: ='User Input'!$C$5 -> 0.45 | M54: ='User Input'!$C$6 -> 0.6 | N54: =IF('User Input'!$C$7="Normal",1, IF('User Input'!$C$7="Low",0.8,1.2)) -> 1 | O54: 467.0501382 | P54: 51.8944598 | Q54: 54.59976105 | R54: 145.6629575 | S54: =IF(C54>='User Input'!$F$11,'User Input'!$C$11,0)+IF(C54>='User Input'!$F$12,'User Input'!$C$12,0)+IF(C54>='User Input'!$F$13,'User Input'!$C$13,0) -> 0 | T54: 1838.709677 | U54: 306.2413158 | V54: 0.3402681287 | X54: 0.1 | Y54: 0.135

Sheet Lists
A1: 0.2 | B1: 0.25 | C1: Low | D1: 2017-12-31 | E1: Yes
A2: 0.25 | B2: 0.3 | C2: Normal | D2: =EOMONTH(D1,1) -> 2018-01-31 | E2: No
A3: 0.3 | B3: 0.35 | C3: High | D3: =EOMONTH(D2,1) -> 2018-02-28
A4: 0.35 | B4: 0.4 | D4: 2018-03-31
A5: 0.4 | B5: 0.45 | D5: 2018-04-30
A6: 0.45 | B6: 0.5 | D6: 2018-05-31
A7: 0.5 | B7: 0.55 | D7: 2018-06-30
B8: 0.6 | D8: 2018-07-31
B9: 0.65 | D9: 2018-08-31
B10: 0.7 | D10: 2018-09-30
D11: 2018-10-31
D12: 2018-11-30
D13: 2018-12-31
D14: 2019-01-31
D15: 2019-02-28
D16: 2019-03-31
D17: 2019-04-30
D18: 2019-05-31
D19: 2019-06-30
D20: 2019-07-31
D21: 2019-08-31
D22: 2019-09-30
D23: 2019-10-31
D24: 2019-11-30
